bitfinex/quotes_SOLUSD_20250731
["timestamp","ask_amount","ask_price","bid_price","bid_amount"]
[1753946360673,5.54000789,181.49,181.48,0.49]
[1753946360855,5.54000789,181.49,181.47,55.34468397]
[1753946361171,9.24464449,181.49,181.47,55.34468397]
[1753946362970,9.24464449,181.49,181.47,114.9457506]
[1753946363264,14.84962317,181.49,181.47,98.16106663]
[1753946363440,9.30961528,181.48,181.47,98.16106663]
[1753946364849,14.13986434,181.48,181.47,98.16106663]
[1753946366366,9.21488566,181.48,181.47,98.16106663]
[1753946366556,35.21488566,181.48,181.47,98.16106663]
[1753946367165,14.13986434,181.48,181.47,98.16106663]
[1753946367371,14.81986434,181.48,181.47,59.66106663]
[1753946368165,14.13986434,181.48,181.47,59.66106663]
[1753946368383,14.81986434,181.48,181.47,59.66106663]
[1753946368585,14.81986434,181.48,181.47,0.06]
[1753946370366,40.81986434,181.48,181.47,0.06]
[1753946370556,14.81986434,181.48,181.47,0.06]
[1753946370777,14.81986434,181.48,181.47,1e-08]
[1753946371354,40.81986434,181.48,181.47,1e-08]
[1753946371592,14.81986434,181.48,181.47,1e-08]
[1753946372375,40.81986434,181.48,181.47,1e-08]
[1753946372587,14.81986434,181.48,181.47,1e-08]
[1753946372754,9.89488566,181.48,181.47,1e-08]
[1753946372961,14.81986434,181.48,181.47,1e-08]
[1753946373158,40.81986434,181.48,181.47,1e-08]
[1753946373358,14.81986434,181.48,181.47,1e-08]
[1753946373560,40.81986434,181.48,181.47,1e-08]
[1753946374163,14.81986434,181.48,181.47,1e-08]
[1753946374362,40.81986434,181.48,181.47,1e-08]
[1753946374571,18.9387312,181.48,181.47,1e-08]
[1753946374882,44.9387312,181.48,181.47,1e-08]
[1753946375468,18.9387312,181.48,181.47,1e-08]
[1753946378093,44.2587312,181.48,181.47,1e-08]
[1753946378490,44.9387312,181.48,181.47,1e-08]
[1753946378873,18.9387312,181.48,181.47,1e-08]
[1753946379388,18.9410294,181.48,181.47,1e-08]
[1753946379973,44.9410294,181.48,181.47,1e-08]
[1753946380691,59.46226369,181.48,181.46,1e-08]
[1753946380899,13.43078034,181.47,181.46,1e-08]
[1753946381898,18.94133304,181.47,181.46,1e-08]
[1753946382368,18.94428219,181.47,181.46,1e-08]
[1753946383309,13.33930351,181.47,181.46,1e-08]
[1753946383978,13.33930351,181.47,181.46,0.49000001]
[1753946384185,18.26428219,181.47,181.46,1e-08]
[1753946385478,18.26698864,181.47,181.46,1e-08]
[1753946386973,13.34200996,181.47,181.46,1e-08]
[1753946387609,7.83145726,181.47,181.46,60.09106664]
[1753946387903,39.34200996,181.47,181.46,60.09106664]
[1753946388405,7.83145726,181.47,181.46,60.09106664]
[1753946388611,7.13359299,181.47,181.46,60.09106664]
[1753946389702,12.64414569,181.47,181.46,60.09106664]
[1753946391013,7.13359299,181.47,181.46,60.09106664]
[1753946391213,33.13359299,181.47,181.46,132.16232929]
[1753946391519,0.03,181.49,181.46,132.16232929]
[1753946391520,0.03,181.49,181.47,16.78468397]
[1753946391695,26.0,181.48,181.47,17.27468397]
[1753946391899,29.7151545,181.48,181.47,16.78468397]
[1753946392198,3.7151545,181.48,181.47,16.78468397]
[1753946392500,3.7451545,181.49,181.47,17.27468397]
[1753946392700,3.7451545,181.49,181.47,16.78468397]
[1753946392913,3.7451545,181.49,181.48,22.19966265]
[1753946394134,0.03,181.49,181.48,22.19966265]
[1753946394482,0.03,181.49,181.48,16.78468397]
[1753946395496,0.03,181.49,181.48,76.3857506]
[1753946396505,0.03,181.49,181.48,114.8257506]
[1753946400483,4.15460684,181.49,181.48,114.8257506]
[1753946400689,7.86976134,181.49,181.48,114.8257506]
[1753946404703,35.25509995,181.49,181.48,114.8257506]
[1753946405085,3.7451545,181.49,181.48,114.8257506]
[1753946405304,0.03,181.49,181.48,114.8257506]
[1753946405707,31.53994545,181.49,181.48,114.8257506]
[1753946405894,3.7451545,181.49,181.48,114.8257506]
[1753946406105,0.03,181.49,181.48,114.8257506]
[1753946407017,0.03,181.49,181.48,98.06106663]
[1753946411706,4.41020835,181.49,181.48,98.06106663]
[1753946411906,9.33518703,181.49,181.48,98.06106663]
[1753946412110,4.41020835,181.49,181.48,98.06106663]
[1753946412316,3.74020835,181.49,181.48,98.06106663]
[1753946412621,0.03,181.49,181.48,98.06106663]
[1753946413822,0.7,181.49,181.48,98.06106663]
[1753946414014,4.41020835,181.49,181.48,98.06106663]
[1753946414925,3.74020835,181.49,181.48,98.06106663]
[1753946415106,0.03,181.49,181.48,98.06106663]
[1753946415306,3.74020835,181.49,181.48,98.06106663]
[1753946416025,35.2501538,181.49,181.48,98.06106663]
[1753946416642,35.2501538,181.49,181.48,114.8457506]
[1753946416643,3.74020835,181.49,181.48,114.8457506]
[1753946416925,3.74020835,181.49,181.48,119.77072928]
[1753946417120,0.03,181.49,181.48,120.26072928]
[1753946420738,0.03,181.49,181.48,125.77097834]
[1753946421931,3.74020835,181.51,181.5,59.57106663]
[1753946422142,3.74020835,181.51,181.5,102.93604531]
[1753946422513,0.03,181.51,181.5,102.93604531]
[1753946422910,0.03,181.51,181.5,98.01106663]
[1753946423114,4.41884914,181.51,181.5,114.7957506]
[1753946424336,35.34382782,181.51,181.5,98.03106663]
[1753946424640,35.92818746,181.51,181.5,98.03106663]
[1753946425633,26.03,181.51,181.5,114.8157506]
[1753946425931,26.03,181.51,181.5,119.74072928]
[1753946426313,29.74004497,181.51,181.5,119.74072928]
[1753946426511,26.03,181.51,181.5,119.74072928]
[1753946427335,29.74075427,181.51,181.5,119.74072928]
[1753946428855,3.74075427,181.51,181.5,114.8157506]
[1753946429142,3.74075427,181.51,181.5,119.74072928]
[1753946429143,0.03,181.51,181.5,119.74072928]
[1753946430435,0.03,181.51,181.5,114.8157506]
[1753946430626,0.03,181.51,181.5,120.23072928]
[1753946432236,0.03,181.51,181.5,119.74072928]
[1753946432828,0.03,181.51,181.5,120.23072928]
[1753946433036,26.03,181.51,181.5,120.23072928]
[1753946433242,29.74075427,181.51,181.5,120.23072928]
[1753946433832,29.74075427,181.51,181.5,115.3057506]
[1753946434138,29.74075427,181.51,181.5,120.23072928]
[1753946435548,29.74075427,181.51,181.5,119.74072928]
[1753946435932,29.74075427,181.51,181.5,137.29487115]
[1753946435933,0.03,181.51,181.5,137.29487115]
[1753946437233,0.71,181.55,181.54,16.78468397]
[1753946437455,0.71,181.55,181.54,88.7157506]
[1753946437943,4.42352083,181.55,181.54,88.7157506]
[1753946439028,9.93164531,181.55,181.54,88.7157506]
[1753946439849,4.42352083,181.55,181.54,88.7157506]
[1753946440232,9.93164531,181.55,181.54,88.7157506]
[1753946446769,9.93164531,181.55,181.54,71.93106663]
[1753946448452,9.93164531,181.55,181.54,33.51106663]
[1753946448638,39.08242966,181.55,181.54,33.51106663]
[1753946448836,35.93164531,181.55,181.54,71.93106663]
[1753946449040,13.08242966,181.55,181.54,71.93106663]
[1753946450748,14.8571976,181.55,181.54,71.93106663]
[1753946450945,14.8571976,181.55,181.54,38.42]
[1753946451269,26.0,181.53,181.5,33.51106663]
[1753946451567,4.41352083,181.52,181.51,38.42]
[1753946451772,9.33907312,181.52,181.5,71.93106663]
[1753946451949,5.62555229,181.51,181.5,71.93106663]
[1753946452462,31.62555229,181.51,181.5,71.93106663]
[1753946452765,35.33907312,181.51,181.5,71.93106663]
[1753946453147,40.84841144,181.51,181.5,71.93106663]
[1753946454254,40.84841053,181.51,181.5,71.93106663]
[1753946454657,40.84841053,181.51,181.5,38.42]
[1753946457572,35.92285824,181.51,181.5,38.42]
[1753946457771,40.84841053,181.51,181.5,38.42]
[1753946459052,35.92285824,181.51,181.5,38.42]
[1753946459268,40.84841053,181.51,181.5,38.42]
[1753946470978,35.92285824,181.51,181.5,38.42]
[1753946471179,40.84841053,181.51,181.5,38.42]
[1753946472384,40.14841053,181.51,181.5,38.42]
[1753946472775,38.37624947,181.51,181.5,38.42]
[1753946473089,39.07624947,181.51,181.5,38.42]
[1753946474902,29.71351992,181.51,181.5,38.91]
[1753946476466,3.71351992,181.51,181.5,38.91]
[1753946476684,9.22256359,181.52,181.5,38.91]
[1753946478171,3.71351992,181.51,181.5,72.42106663]
[1753946479890,3.71351992,181.51,181.5,71.93106663]
[1753946480062,9.22285824,181.51,181.5,71.93106663]
[1753946480782,9.92285824,181.51,181.5,71.93106663]
[1753946480985,13.07624947,181.51,181.5,71.93106663]
[1753946482078,13.07624947,181.51,181.5,71.99106663]
[1753946484068,9.22285824,181.51,181.5,38.48]
[1753946484411,8.66272955,181.51,181.5,38.48]
[1753946484576,12.37624947,181.51,181.5,38.48]
[1753946485196,13.07624947,181.51,181.5,38.48]
[1753946490380,12.37624947,181.51,181.5,38.48]
[1753946490574,3.71351992,181.51,181.5,42.12339123]
[1753946490780,3.71351992,181.51,181.5,38.97]
[1753946491477,29.71351992,181.51,181.5,38.97]
[1753946491717,3.71351992,181.51,181.5,38.97]
[1753946491900,26.0,181.51,181.5,58.9080752]
[1753946492104,29.71351992,181.51,181.5,58.9080752]
[1753946493002,29.71351992,181.51,181.5,60.67938562]
[1753946493205,29.71351992,181.51,181.5,55.75468397]
[1753946495888,29.71351992,181.51,181.5,89.2657506]
[1753946496487,29.71351992,181.51,181.5,94.19045225]
[1753946496691,3.71351992,181.51,181.5,88.7757506]
[1753946498706,3.71351992,181.51,181.5,89.2657506]
[1753946499239,29.71351992,181.51,181.5,89.2657506]
[1753946501488,29.71351992,181.51,181.5,88.7757506]
[1753946503711,29.71351992,181.51,181.5,93.70045225]
[1753946504608,3.71351992,181.51,181.5,88.7757506]
[1753946507115,29.71351992,181.51,181.5,88.7757506]
[1753946507714,29.71351992,181.51,181.5,93.70045225]
[1753946508913,29.71351992,181.51,181.5,94.19045225]
[1753946509113,3.71351992,181.51,181.5,94.19045225]
[1753946509319,3.74351992,181.53,181.5,89.2657506]
[1753946509498,29.74351992,181.53,181.52,21.70938562]
[1753946509698,29.74351992,181.53,181.52,60.10938562]
[1753946510101,29.74351992,181.53,181.52,93.62045225]
[1753946511719,3.74351992,181.53,181.52,93.62045225]
[1753946512216,29.74351992,181.53,181.52,93.62045225]
[1753946513107,29.74351992,181.53,181.52,88.6957506]
[1753946513307,29.74351992,181.53,181.52,93.62045225]
[1753946513529,3.74351992,181.53,181.52,88.6957506]
[1753946513695,0.03,181.53,181.52,88.6957506]
[1753946513900,3.74351992,181.53,181.52,88.6957506]
[1753946516432,3.74351992,181.53,181.52,91.84688179]
[1753946516731,3.74351992,181.53,181.52,92.33688179]
[1753946517725,3.74351992,181.53,181.52,91.84688179]
[1753946527318,3.74351992,181.53,181.52,91.90688179]
[1753946532320,3.74351992,181.53,181.52,88.7557506]
[1753946532519,4.46351992,181.53,181.52,91.90688179]
[1753946532929,3.74351992,181.53,181.52,91.90688179]
[1753946535160,4.46351992,181.53,181.52,91.90688179]
[1753946536339,3.74351992,181.53,181.52,91.90688179]
[1753946539446,3.74351992,181.53,181.52,92.39688179]
[1753946539745,0.03,181.53,181.52,92.39688179]
[1753946540444,26.03,181.55,181.54,16.78468397]
[1753946540639,29.74351992,181.55,181.54,91.79688179]
[1753946540852,30.46351992,181.55,181.54,88.6457506]
[1753946543048,4.46351992,181.55,181.54,88.6457506]
[1753946543244,30.46351992,181.55,181.54,88.6457506]
[1753946546231,30.46351992,181.55,181.54,50.2657506]
[1753946546454,30.46351992,181.55,181.54,88.6457506]
[1753946547450,3.74351992,181.55,181.54,91.79688179]
[1753946547748,0.03,181.55,181.54,91.79688179]
[1753946551346,0.7,181.55,181.54,88.6457506]
[1753946551546,0.7,181.55,181.54,91.79688179]
[1753946554349,0.03,181.55,181.54,91.79688179]
[1753946554550,0.03,181.55,181.54,88.6457506]
[1753946554746,0.7,181.55,181.54,88.6457506]
[1753946554956,0.7,181.55,181.54,91.79688179]
[1753946556266,0.03,181.55,181.54,91.79688179]
[1753946557953,0.03,181.55,181.54,88.6457506]
[1753946558157,0.7,181.55,181.54,91.79688179]
[1753946559459,0.03,181.55,181.54,91.79688179]
[1753946560676,0.03,181.55,181.54,88.6457506]
[1753946560969,0.03,181.55,181.54,91.79688179]
[1753946564791,0.7,181.55,181.54,91.79688179]
[1753946564963,0.03,181.55,181.54,91.79688179]
[1753946569985,0.7,181.56,181.55,33.45106663]
[1753946570172,0.7,181.56,181.55,36.60219782]
[1753946570672,0.7,181.56,181.55,38.17159782]
[1753946571393,0.03,181.56,181.55,38.17159782]
[1753946572578,0.75,181.56,181.55,38.17159782]
[1753946574378,0.03,181.56,181.55,35.02046663]
[1753946574697,0.75,181.56,181.55,38.17159782]
[1753946576292,0.75,181.56,181.55,90.1651506]
[1753946576480,4.46351992,181.56,181.55,90.1651506]
[1753946576681,9.97134102,181.56,181.55,90.1651506]
[1753946577995,13.12247221,181.56,181.55,35.02046663]
[1753946578176,13.12247221,181.56,181.55,73.38046663]
[1753946578378,9.97134102,181.56,181.55,73.38046663]
[1753946578772,13.12247221,181.56,181.55,73.38046663]
[1753946580594,30.46351992,181.56,181.55,73.38046663]
[1753946580785,29.74351992,181.56,181.55,73.38046663]
[1753946581469,29.74351992,181.56,181.55,90.1651506]
[1753946581801,3.74351992,181.56,181.55,93.31628179]
[1753946582675,7.87442276,181.56,181.55,93.31628179]
[1753946582874,7.87442276,181.56,181.55,90.1651506]
[1753946583071,14.10224386,181.56,181.55,73.38046663]
[1753946583306,40.10224386,181.56,181.55,73.38046663]
[1753946583798,34.59442276,181.56,181.55,73.38046663]
[1753946585100,40.10224386,181.56,181.55,73.38046663]
[1753946590086,40.10330692,181.56,181.55,73.38046663]
[1753946590293,43.25443811,181.56,181.55,73.38046663]
[1753946590501,47.89633801,181.56,181.55,73.38046663]
[1753946591398,47.89633801,181.56,181.55,35.02046663]
[1753946591708,47.89633801,181.56,181.55,73.38046663]
[1753946593107,47.89572371,181.56,181.55,73.44046663]
[1753946594605,44.74459252,181.56,181.55,73.44046663]
[1753946594787,47.89572371,181.56,181.55,73.44046663]
[1753946600211,43.25382381,181.56,181.55,73.44046663]
[1753946602405,39.12247221,181.56,181.55,73.44046663]
[1753946602611,43.25161272,181.56,181.55,73.44046663]
[1753946605094,47.89351262,181.56,181.55,73.44046663]
[1753946606017,47.89339509,181.56,181.55,73.44046663]
[1753946606314,21.89339509,181.56,181.55,73.44046663]
[1753946606614,17.25149519,181.56,181.55,64.129672]
[1753946606825,33.81281319,181.56,181.55,64.129672]
[1753946607221,33.81281319,181.56,181.52,0.06]
[1753946607222,26.0,181.53,181.52,0.06]
[1753946607434,49.59819885,181.53,181.52,0.06]
[1753946607720,43.18240542,181.53,181.52,0.06]
[1753946608427,43.18107785,181.53,181.52,0.06]
[1753946608799,59.74605385,181.53,181.52,0.06]
[1753946609808,72.35057861,181.53,181.52,0.06]
[1753946613702,72.35057861,181.53,181.52,1e-08]
[1753946615709,72.34510958,181.53,181.52,1e-08]
[1753946616334,72.37510958,181.53,181.52,1e-08]
[1753946617330,77.00179945,181.53,181.52,1e-08]
[1753946618507,77.00179945,181.53,181.5,0.06]
[1753946618852,3.15113119,181.51,181.5,0.06]
[1753946619133,10.97850375,181.51,181.5,0.06]
[1753946619497,11.65850375,181.51,181.5,0.06]
[1753946620109,13.86741075,181.51,181.5,0.06]
[1753946620739,19.37449418,181.51,181.49,0.06]
[1753946621032,19.37449418,181.51,181.48,0.06]
[1753946621033,16.29131247,181.5,181.48,0.06]
[1753946621200,10.97624886,181.49,181.48,0.06]
[1753946621605,11.65624886,181.49,181.48,0.06]
[1753946622110,17.16619431,181.49,181.48,0.06]
[1753946624418,19.37546731,181.49,181.48,0.06]
[1753946628734,15.25840053,181.49,181.48,0.06]
[1753946628943,19.36928247,181.49,181.48,0.06]
[1753946635253,19.36828313,181.49,181.48,0.06]
[1753946636153,16.21715194,181.49,181.48,0.06]
[1753946636362,19.36828313,181.49,181.48,0.06]
[1753946637462,19.36828313,181.49,181.47,0.06]
[1753946637667,10.96906468,181.48,181.46,1.59660001]
[1753946637845,16.47961738,181.47,181.46,1.59660001]
[1753946638155,33.71099938,181.47,181.46,1.59660001]
[1753946640551,56.55986819,181.47,181.46,1.59660001]
[1753946640746,33.71099938,181.47,181.46,1.59660001]
[1753946641371,16.47961738,181.47,181.46,1.59660001]
[1753946641881,13.32848619,181.47,181.46,1.59660001]
[1753946642031,16.47961738,181.47,181.46,1.59660001]
[1753946642849,13.32848619,181.47,181.46,2.08660001]
[1753946643060,7.81793349,181.47,181.46,9.85840001]
[1753946643355,7.81793349,181.47,181.46,13.0095312]
[1753946643856,7.81793349,181.47,181.46,9.85840001]
[1753946644352,7.81793349,181.47,181.46,97.55840001]
[1753946644559,33.81793349,181.47,181.46,97.55840001]
[1753946645071,33.81793349,181.47,181.46,100.7095312]
[1753946646859,33.81793349,181.47,181.46,97.55840001]
[1753946647264,33.81793349,181.47,181.46,100.7095312]
[1753946648263,30.1098826,181.47,181.46,100.7095312]
[1753946648961,33.82431726,181.47,181.46,100.7095312]
[1753946649152,30.11819539,181.47,181.46,100.7095312]
[1753946650279,30.11819539,181.47,181.46,97.55840001]
[1753946650462,33.82726687,181.47,181.46,97.55840001]
[1753946650666,33.82726687,181.47,181.46,135.91840001]
[1753946651852,33.83298927,181.47,181.46,135.91840001]
[1753946652378,33.83298927,181.47,181.46,139.0695312]
[1753946653160,33.83298927,181.47,181.46,135.91840001]
[1753946653367,33.83298927,181.47,181.46,135.42840001]
[1753946653851,0.03,181.49,181.47,18.38608397]
[1753946654077,0.03,181.49,181.48,60.91824006]
[1753946655664,0.03,181.49,181.48,66.42848912]
[1753946656182,0.03,181.49,181.48,60.91824006]
[1753946657368,0.03,181.49,181.48,66.42848912]
[1753946657874,0.03,181.49,181.48,60.91824006]
[1753946658474,0.03,181.49,181.48,57.76710887]
[1753946658685,0.03,181.49,181.48,148.61824006]
[1753946658886,0.03,181.49,181.48,148.06721516]
[1753946662863,0.03,181.49,181.48,153.57746422]
[1753946664688,0.03,181.51,181.5,4.76433119]
[1753946664884,0.03,181.51,181.5,43.10433119]
[1753946666082,0.03,181.51,181.5,60.92997934]
[1753946669004,0.03,181.51,181.5,60.43997934]
[1753946669986,0.03,181.51,181.5,56.73788397]
[1753946670178,0.72,181.51,181.5,59.88901516]
[1753946670506,0.72,181.51,181.5,147.55901516]
[1753946678381,0.03,181.51,181.5,147.55901516]
[1753946680806,0.03,181.51,181.5,148.04901516]
[1753946682615,0.03,181.51,181.5,153.55865703]
[1753946685105,0.03,181.53,181.52,18.31958397]
[1753946685311,0.03,181.53,181.52,59.79071516]
[1753946686586,0.03,181.53,181.52,65.29974997]
[1753946686895,0.03,181.53,181.52,65.78974997]
[1753946687099,0.03,181.53,181.52,60.28071516]
[1753946687295,0.03,181.53,181.52,59.79071516]
[1753946688096,0.72,181.53,181.52,59.79071516]
[1753946688499,0.72,181.53,181.52,21.47071516]
[1753946688818,0.72,181.53,181.52,59.79071516]
[1753946689814,0.03,181.53,181.52,59.79071516]
[1753946690792,0.03,181.53,181.52,74.20125345]
[1753946690999,0.03,181.53,181.52,86.80577821]
[1753946692909,0.03,181.53,181.52,80.89115932]
[1753946693716,0.03,181.53,181.52,75.97064079]
[1753946693913,0.03,181.53,181.52,80.89115932]
[1753946694110,3.73690657,181.56,181.55,104.36468397]
[1753946694307,3.73690657,181.56,181.55,147.6052025]
[1753946694496,4.44690657,181.56,181.55,147.6052025]
[1753946698021,14.0763933,181.56,181.55,142.68468397]
[1753946700317,9.95472767,181.56,181.55,142.68468397]
[1753946700505,14.07825151,181.56,181.55,142.68468397]
[1753946701229,18.99877004,181.56,181.55,125.9]
[1753946701610,18.99877004,181.56,181.55,87.58]
[1753946701935,14.07825151,181.56,181.55,87.58]
[1753946702220,18.99877004,181.56,181.55,87.58]
[1753946702792,26.0,181.53,181.52,87.58]
[1753946702994,39.46094894,181.53,181.47,89.2379]
[1753946703196,31.50994545,181.49,181.48,38.32]
[1753946703494,40.05037586,181.49,181.48,125.9]
[1753946704099,40.05037586,181.49,181.48,38.32]
[1753946705029,33.83043041,181.49,181.48,60.0252025]
[1753946705529,33.83043041,181.49,181.48,55.10468397]
[1753946705709,29.70690657,181.49,181.48,55.10468397]
[1753946707329,30.41690657,181.49,181.48,55.10468397]
[1753946708629,34.53970849,181.49,181.48,55.10468397]
[1753946708813,34.53970849,181.49,181.48,142.68468397]
[1753946709229,40.04965394,181.49,181.48,142.68468397]
[1753946710025,44.97017247,181.49,181.47,89.2379]
[1753946710233,4.41690657,181.48,181.47,89.2379]
[1753946710420,4.41690657,181.48,181.47,127.5579]
[1753946710815,8.53894268,181.48,181.47,127.5579]
[1753946711224,14.04919174,181.48,181.47,127.5579]
[1753946711422,18.96971027,181.48,181.47,127.5579]
[1753946712138,14.04919174,181.48,181.47,127.5579]
[1753946712638,7.82894268,181.48,181.47,127.5579]
[1753946713130,3.70690657,181.48,181.47,127.5579]
[1753946713341,4.41690657,181.48,181.47,127.5579]
[1753946713714,8.53704252,181.48,181.47,127.5579]
[1753946716344,14.04729158,181.48,181.47,127.5579]
[1753946718429,9.92715563,181.48,181.47,127.5579]
[1753946718626,14.84767416,181.48,181.47,87.64]
[1753946718843,18.96487607,181.48,181.47,87.64]
[1753946719726,18.96411118,181.48,181.47,0.06]
[1753946731973,18.96411118,181.48,181.46,1e-08]
[1753946732158,13.44386212,181.47,181.46,1e-08]
[1753946732447,30.01524312,181.47,181.46,1e-08]
[1753946732640,30.01524312,181.47,181.45,1e-08]
[1753946732831,13.44386212,181.46,181.44,1e-08]
[1753946733024,12.74386212,181.45,181.44,1e-08]
[1753946733225,13.44386212,181.45,181.44,1e-08]
[1753946733953,18.95502221,181.45,181.44,1e-08]
[1753946735831,23.87554074,181.45,181.44,1e-08]
[1753946736345,57.29502221,181.45,181.44,1e-08]
[1753946738455,57.28487236,181.45,181.44,1e-08]
[1753946740858,13.32435383,181.45,181.44,1e-08]
[1753946741061,18.24487236,181.45,181.44,1e-08]
[1753946741561,18.94487236,181.45,181.44,1e-08]
[1753946744442,18.24487236,181.45,181.44,1e-08]
[1753946746844,18.94487236,181.45,181.44,1e-08]
[1753946747459,23.58121171,181.45,181.44,1e-08]
[1753946748053,18.94487236,181.45,181.44,1e-08]
[1753946748270,23.58121171,181.45,181.44,1e-08]
[1753946750539,23.61121171,181.45,181.44,1e-08]
[1753946752646,23.62477185,181.45,181.44,1e-08]
[1753946752966,26.0,181.43,181.42,0.06]
[1753946753162,38.74727241,181.43,181.42,0.06]
[1753946753365,44.03272176,181.43,181.42,0.06]
[1753946755074,49.54448938,181.43,181.42,0.06]
[1753946755772,53.89525076,181.43,181.42,0.06]
[1753946760883,49.25980141,181.43,181.42,0.06]
[1753946764074,48.60980141,181.43,181.42,0.06]
[1753946764857,46.84534819,181.43,181.42,0.06]
[1753946765056,43.68928288,181.43,181.42,0.06]
[1753946765457,46.84534819,181.43,181.42,0.06]
[1753946765853,43.68928288,181.43,181.42,0.06]
[1753946766276,46.84534819,181.43,181.42,0.06]
[1753946766454,47.50520036,181.43,181.42,0.06]
[1753946767970,52.15230131,181.43,181.4,87.64]
[1753946768181,10.99267136,181.42,181.4,87.64]
[1753946768362,7.83660605,181.41,181.4,87.64]
[1753946769389,13.35045955,181.41,181.4,87.64]
[1753946770584,13.35045955,181.41,181.4,88.13]
[1753946770788,13.35045955,181.41,181.4,87.64]
[1753946771091,13.35045955,181.41,181.4,89.2735]
[1753946771998,16.50652486,181.41,181.4,89.2735]
[1753946772989,17.15652486,181.41,181.4,89.2735]
[1753946773293,16.50652486,181.41,181.4,89.2735]
[1753946774797,17.15652486,181.41,181.4,89.2735]
[1753946775491,16.50652486,181.41,181.4,89.2735]
[1753946776596,17.15652486,181.41,181.4,89.2735]
[1753946778396,16.50652486,181.41,181.4,89.2735]
[1753946778778,13.35045955,181.41,181.4,89.2735]
[1753946779086,16.50652486,181.41,181.4,89.2735]
[1753946779586,13.35045955,181.41,181.4,89.2735]
[1753946784081,16.50652486,181.41,181.4,89.2735]
[1753946784599,13.35045955,181.41,181.4,89.2735]
[1753946785900,17.99995943,181.41,181.4,89.2735]
[1753946787703,13.86878173,181.41,181.4,89.2735]
[1753946789505,39.86878173,181.41,181.4,89.2735]
[1753946790304,44.00258971,181.41,181.4,89.2735]
[1753946791089,39.35308983,181.41,181.4,89.2735]
[1753946791298,39.35308983,181.41,181.4,79.95595895]
[1753946791903,40.06308983,181.41,181.4,79.95595895]
[1753946793994,33.84071455,181.41,181.4,79.95595895]
[1753946794197,33.84071455,181.41,181.4,80.50595895]
[1753946794615,33.87071455,181.41,181.4,80.01595895]
[1753946796306,33.87071455,181.41,181.4,80.50595895]
[1753946796618,33.87071455,181.41,181.4,83.66202426]
[1753946798198,33.87071455,181.41,181.4,100.44670823]
[1753946799786,7.87071455,181.41,181.4,100.44670823]
[1753946800207,4.16380798,181.41,181.4,100.44670823]
[1753946800406,7.87071455,181.41,181.4,100.44670823]
[1753946800803,4.16380798,181.41,181.4,100.44670823]
[1753946801003,7.87071455,181.41,181.4,100.44670823]
[1753946804303,7.87071455,181.41,181.4,99.95670823]
[1753946809826,7.86840588,181.41,181.4,99.95670823]
[1753946810317,7.86840588,181.41,181.4,96.80064292]
[1753946810517,14.09078116,181.41,181.4,80.01595895]
[1753946812327,7.86840588,181.41,181.4,99.95670823]
[1753946815704,7.86847813,181.41,181.4,99.95670823]
[1753946818833,4.16157156,181.41,181.4,100.44670823]
[1753946819024,3.70690657,181.42,181.41,98.75737136]
[1753946819330,0.03,181.43,181.42,18.44168397]
[1753946819520,0.03,181.43,181.42,22.08774928]
[1753946820616,0.03,181.43,181.42,22.63895642]
[1753946820815,0.03,181.45,181.42,20.98195642]
[1753946821114,3.73690657,181.45,181.44,4.70606531]
[1753946821308,3.73690657,181.45,181.44,78.8669527]
[1753946821614,3.73690657,181.45,181.44,79.3569527]
[1753946822235,0.03,181.45,181.44,79.3569527]
[1753946823924,0.03,181.45,181.44,78.8669527]
[1753946824835,0.71,181.45,181.44,78.8669527]
[1753946825210,0.03,181.45,181.44,78.8669527]
[1753946825618,0.03,181.45,181.44,95.65163667]
[1753946825823,0.03,181.45,181.44,96.14163667]
[1753946826417,0.03,181.45,181.44,101.16310051]
[1753946828638,0.71,181.45,181.44,95.65163667]
[1753946829740,26.71,181.45,181.44,75.71088739]
[1753946829940,30.41690657,181.45,181.44,130.79557136]
[1753946830831,35.92806666,181.45,181.44,130.79557136]
[1753946832735,30.41690657,181.45,181.44,130.79557136]
[1753946833748,34.54022626,181.45,181.44,130.79557136]
[1753946835053,40.05147788,181.45,181.44,130.79557136]
[1753946835756,34.54031779,181.45,181.44,130.79557136]
[1753946836428,33.86031779,181.45,181.44,133.95163667]
[1753946836854,29.73690657,181.45,181.44,133.95163667]
[1753946839057,29.73690657,181.45,181.44,130.79557136]
[1753946839257,30.41690657,181.45,181.44,133.95163667]
[1753946841659,4.41690657,181.45,181.44,133.95163667]